bitfinex/quotes_ETHUSD_20260227
["timestamp","ask_amount","ask_price","bid_price","bid_amount"]
[1772208686242,1.28852695,1940.2,1939.5,0.48807293]
[1772208686423,1.28852695,1940.2,1939.5,1.61907293]
[1772208687039,1.28839414,1940.4,1939.6,0.48807293]
[1772208688530,5.15456959,1940.5,1939.7,1.77693203]
[1772208689733,0.001,1940.5,1939.8,0.48807293]
[1772208690955,0.001,1940.5,1940.0,0.48807293]
[1772208691262,0.001,1940.5,1940.1,1.13]
[1772208692995,0.001,1940.4,1940.2,1.28852695]
[1772208693966,0.001,1940.4,1940.1,1.61807293]
[1772208694171,0.001,1940.4,1940.1,2.90666591]
[1772208696574,0.001,1940.4,1940.1,1.61807293]
[1772208696796,0.001,1940.4,1939.7,1.28883256]
[1772208696961,0.47968163,1940.4,1939.7,1.133]
[1772208697167,0.47968163,1940.4,1939.4,1.134]
[1772208697168,0.47868163,1940.3,1939.4,1.134]
[1772208697674,1.76720858,1940.2,1939.5,1.288992]
[1772208698698,5.15410782,1940.3,1939.6,0.48807293]
[1772208698699,1.28850155,1940.3,1939.6,0.48807293]
[1772208698890,1.74915224,1940.3,1939.5,1.288992]
[1772208699070,0.46065069,1940.1,1939.4,1.62536056]
[1772208699269,0.46065069,1940.1,1939.4,2.91441225]
[1772208699657,1.28865979,1940.0,1939.4,2.91441225]
[1772208700260,0.4538843,1939.9,1939.4,1.134]
[1772208700505,0.4538843,1939.9,1939.2,0.49301739]
[1772208700689,0.4538843,1939.9,1939.2,1.78220478]
[1772208701061,0.4538843,1939.9,1939.0,0.00263886]
[1772208701062,2.41865594,1939.4,1939.0,0.00263886]
[1772208701389,2.87254024,1939.6,1939.0,0.00263886]
[1772208701594,0.4538843,1939.6,1939.0,0.00263886]
[1772208701760,2.60179265,1939.8,1939.0,0.49565625]
[1772208701960,3.05567695,1939.8,1939.0,0.49565625]
[1772208702188,0.4538843,1939.6,1939.0,0.00263886]
[1772208703485,5.155272,1939.8,1939.0,0.00263886]
[1772208703486,2.41865594,1939.4,1939.0,0.00263886]
[1772208703792,1.28919141,1939.2,1938.9,0.0011]
[1772208704499,3.70784735,1939.2,1938.7,0.0011]
[1772208704694,0.4538843,1939.1,1938.7,0.0011]
[1772208705379,1.7688843,1939.1,1938.7,0.0011]
[1772208705577,1.7688843,1939.1,1938.5,0.0011]
[1772208705578,2.87254024,1939.0,1938.5,0.0011]
[1772208705902,2.41865594,1938.8,1938.4,0.0011]
[1772208706781,1.28939089,1938.9,1938.4,0.0011]
[1772208707102,2.60539089,1938.9,1938.4,0.0011]
[1772208707278,5.15715519,1939.1,1938.4,0.0011]
[1772208707466,2.41865594,1938.8,1938.4,0.0011]
[1772208707867,2.41865594,1938.8,1938.1,1.28991677]
[1772208707868,2.87254024,1938.5,1938.0,0.00153886]
[1772208708167,4.18854024,1938.5,1938.0,0.00153886]
[1772208708374,2.41865594,1938.2,1937.5,1.29029629]
[1772208708594,2.41865594,1938.2,1937.4,1.62401739]
[1772208708595,2.41865594,1938.0,1937.4,1.131]
[1772208708798,2.41865594,1938.0,1937.3,1.29040161]
[1772208709108,2.41865594,1937.6,1937.0,0.00153886]
[1772208709268,2.41865594,1937.6,1937.0,1.29218168]
[1772208709595,1.316,1937.7,1937.0,1.29218168]
[1772208709808,1.316,1937.8,1937.0,1.78519907]
[1772208710007,2.41865594,1938.5,1937.2,0.49301739]
[1772208710184,2.41865594,1938.5,1937.3,0.49301739]
[1772208710681,2.41865594,1938.5,1937.1,1.13]
[1772208710682,3.05927519,1938.9,1937.7,0.49301739]
[1772208710878,3.05927519,1938.9,1937.8,0.49301739]
[1772208711399,2.60539089,1938.9,1937.8,0.49301739]
[1772208711596,0.4538843,1938.8,1937.8,0.49301739]
[1772208711801,0.00153886,1939.0,1938.0,0.49301739]
[1772208712011,0.00153886,1939.0,1938.2,0.49301739]
[1772208712397,0.00153886,1939.0,1938.3,0.49301739]
[1772208713307,5.15554791,1939.7,1938.3,0.49301739]
[1772208713498,0.4538843,1939.6,1938.3,0.49301739]
[1772208713696,2.87254024,1939.3,1938.3,0.49301739]
[1772208713898,1.28905847,1939.4,1938.4,1.28972348]
[1772208714097,1.74291917,1939.5,1938.5,0.49301739]
[1772208714608,1.28897464,1939.6,1938.5,0.49301739]
[1772208714912,4.16151488,1939.6,1938.5,0.49301739]
[1772208715082,2.87254024,1939.4,1938.5,0.49301739]
[1772208715812,0.4538843,1939.3,1938.5,0.49301739]
[1772208716586,1.28919141,1939.2,1938.6,1.28959042]
[1772208718512,1.74307571,1939.2,1938.6,1.28959042]
[1772208718716,0.4538843,1939.1,1938.3,1.28972348]
[1772208718921,2.87254024,1938.9,1938.2,2.41881448]
[1772208719087,6.12650329,1939.2,1938.3,0.49301739]
[1772208719088,1.74307571,1939.2,1938.3,0.49301739]
[1772208719414,3.05907571,1939.2,1938.3,0.49301739]
[1772208719818,1.74307571,1939.2,1938.3,0.49301739]
[1772208720039,0.4548843,1939.3,1938.5,0.49301739]
[1772208720206,0.4538843,1939.2,1938.3,0.49301739]
[1772208720388,1.29013035,1939.3,1938.3,0.49301739]
[1772208720587,0.001,1939.3,1938.5,0.49301739]
[1772208720785,0.001,1939.3,1938.6,0.49301739]
[1772208721984,0.4538843,1939.2,1938.4,1.28972348]
[1772208722199,0.4538843,1938.9,1938.2,1.129]
[1772208722820,0.4538843,1938.7,1938.2,2.41885202]
[1772208723021,0.4538843,1938.7,1938.2,1.129]
[1772208723817,0.4538843,1938.7,1938.2,2.41885571]
[1772208724026,1.28944477,1938.9,1938.2,2.41885571]
[1772208724599,0.4538843,1939.0,1938.2,2.41885571]
[1772208724804,1.74320978,1939.0,1938.2,2.41885571]
[1772208725421,0.4538843,1938.9,1938.2,2.41885571]
[1772208725591,1.28929385,1939.1,1938.2,2.9118731]
[1772208726420,0.4538843,1939.0,1938.2,2.41885571]
[1772208726603,0.4538843,1938.8,1938.1,1.29102176]
[1772208726803,1.2895239,1938.7,1938.1,1.29102176]
[1772208727215,1.7434082,1938.7,1938.1,1.29102176]
[1772208728410,1.7434082,1938.7,1938.1,0.0011]
[1772208728617,2.87254024,1938.5,1938.0,0.00263886]
[1772208728821,1.74360778,1938.4,1938.0,0.00263886]
[1772208729139,0.4538843,1938.3,1938.0,0.00263886]
[1772208729334,0.4538843,1938.2,1937.8,0.0011]
[1772208729630,1.74357845,1938.5,1937.8,0.0011]
[1772208729832,0.4538843,1938.4,1937.8,0.0011]
[1772208730713,1.7436663,1938.4,1937.8,0.0011]
[1772208730909,0.4538843,1938.4,1938.2,0.0011]
[1772208731102,1.28962055,1938.6,1938.2,0.0011]
[1772208732115,1.74942828,1938.7,1938.2,0.0011]
[1772208734133,2.60742661,1938.9,1938.2,0.0011]
[1772208734310,0.001,1938.9,1938.2,0.45134759]
[1772208735733,0.001,1938.9,1938.3,1.74003761]
[1772208736034,0.001,1938.9,1938.4,0.45024759]
[1772208737739,0.001,1939.3,1938.6,0.45024759]
[1772208737938,0.001,1939.3,1938.6,1.57724759]
[1772208738112,1.74998375,1939.3,1938.5,1.28965695]
[1772208739144,1.74998375,1939.3,1938.2,6.28751248]
[1772208739145,0.45985343,1939.1,1938.2,2.41791469]
[1772208740107,1.28932439,1939.0,1938.2,2.41791469]
[1772208740411,1.74917782,1939.0,1938.2,2.41791469]
[1772208741036,1.74917782,1939.0,1938.2,2.86816228]
[1772208741338,1.28925494,1939.2,1938.3,0.45024759]
[1772208743077,0.45985343,1939.1,1938.3,1.73998667]
[1772208744775,0.001,1939.2,1938.4,0.45134759]
[1772208745125,0.001,1939.2,1938.5,1.73990454]
[1772208745857,0.45985343,1939.1,1938.4,0.0011]
[1772208746832,0.45985343,1939.1,1938.4,1.29082253]
[1772208747266,1.28932439,1939.0,1938.4,0.0011]
[1772208748472,1.28927087,1939.1,1938.4,0.45134759]
[1772208748636,1.2902343,1939.2,1938.4,0.45134759]
[1772208749460,1.2902343,1939.2,1938.5,1.73990454]
[1772208750548,1.75008773,1939.2,1938.5,1.73990454]
[1772208751282,1.2902343,1939.2,1938.6,0.45024759]
[1772208751494,0.001,1939.2,1938.7,1.2895239]
[1772208752049,0.001,1939.2,1938.8,0.45024759]
[1772208752571,0.001,1939.2,1938.7,1.2895239]
[1772208753345,0.001,1939.2,1938.7,1.73977149]
[1772208753596,0.001,1939.2,1938.8,0.45024759]
[1772208755055,0.001,1939.2,1938.7,1.2895239]
[1772208755250,0.45985343,1939.1,1938.4,0.0011]
[1772208755465,0.45985343,1939.0,1938.4,0.0011]
[1772208755689,1.28939089,1938.9,1938.4,0.0011]
[1772208755868,1.74924432,1938.9,1938.4,0.0011]
[1772208756063,0.45985343,1938.8,1938.4,0.0011]
[1772208756395,0.45985343,1938.5,1938.0,0.00263886]
[1772208756557,3.39092288,1938.6,1937.9,0.0011]
[1772208756558,1.31,1938.4,1937.9,0.0011]
[1772208756750,0.45985343,1938.3,1937.9,0.0011]
[1772208756975,0.45985343,1938.2,1937.2,1.2905091]
[1772208757174,3.39092288,1938.3,1937.2,1.2905091]
[1772208757175,0.45985343,1938.1,1937.2,1.2905091]
[1772208757587,1.28998968,1938.0,1937.2,1.2905091]
[1772208757753,1.28988008,1938.2,1937.3,0.45024759]
[1772208758273,1.74973351,1938.2,1937.3,0.45024759]
[1772208759197,0.47199304,1938.1,1937.1,2.41758508]
[1772208759559,1.28998968,1938.0,1937.2,0.47661636]
[1772208760491,1.77164544,1938.0,1937.2,0.47661636]
[1772208760697,0.48165576,1937.9,1937.1,2.41758833]
[1772208760858,0.48165576,1937.9,1937.1,1.127]
[1772208761052,1.79065576,1937.8,1937.1,2.41758901]
[1772208761363,0.48165576,1937.8,1937.1,2.41758901]
[1772208761985,3.08051232,1938.2,1937.2,0.4976245]
[1772208764172,3.08051232,1938.2,1937.3,1.29045578]
[1772208764767,1.77151232,1938.2,1937.3,1.29045578]
[1772208765116,3.08151232,1938.2,1937.4,0.4976245]
[1772208766098,0.48165576,1938.1,1937.4,0.4976245]
[1772208766289,1.28998968,1938.0,1937.4,1.78798911]
[1772208767064,1.28998968,1938.0,1937.4,1.78799933]
[1772208767782,0.48165576,1937.9,1937.1,0.4976245]
[1772208768563,1.29012281,1937.8,1937.2,1.2905224]
[1772208769067,0.48165576,1938.2,1937.3,0.4976245]
[1772208769566,0.48165576,1938.2,1937.2,0.0011]
[1772208769767,0.48165576,1938.2,1937.2,0.4987245]
[1772208770672,1.28992312,1938.1,1937.3,1.29045578]
[1772208770891,2.59892312,1938.1,1937.3,1.29045578]
[1772208771094,0.48165576,1938.0,1937.2,0.0011]
[1772208771283,0.44791768,1937.3,1936.8,1.29182748]
[1772208771481,0.48165576,1937.5,1936.8,1.78945198]
[1772208771709,0.48165576,1937.8,1936.9,0.4976245]
[1772208772199,0.48165576,1937.8,1936.9,1.6246245]
[1772208773087,1.77181587,1937.8,1937.0,1.29065565]
[1772208773672,1.29009842,1937.9,1937.1,0.4976245]
[1772208774299,1.29157022,1938.0,1937.1,0.4976245]
[1772208774504,0.48165576,1937.9,1937.1,0.4976245]
[1772208776594,5.64189236,1937.9,1937.2,1.2905224]
[1772208776795,1.771712,1937.9,1937.2,1.2905224]
[1772208777502,0.48165576,1937.8,1936.9,5.16273447]
[1772208778498,0.48165576,1937.8,1936.8,1.29185503]
[1772208778797,0.48165576,1937.6,1936.8,1.29185503]
[1772208778994,0.48165576,1937.5,1936.8,1.29185503]
[1772208779381,0.48165576,1937.5,1936.8,0.0011]
[1772208779882,1.64419536,1937.6,1936.6,0.0011]
[1772208779883,0.48165576,1937.3,1936.6,0.0011]
[1772208780079,0.48165576,1937.0,1936.5,0.0011]
[1772208780313,0.48165576,1936.8,1936.5,0.0011]
[1772208780713,1.29085557,1936.7,1936.5,0.0011]
[1772208780910,0.48165576,1936.6,1936.5,0.0011]
[1772208781088,0.48165576,1936.6,1936.0,0.00153886]
[1772208781285,0.48165576,1936.6,1936.0,1.29285216]
[1772208781609,3.07843207,1936.9,1936.1,0.4976245]
[1772208781915,2.59672615,1936.9,1936.2,0.4976245]
[1772208782224,2.59672522,1936.9,1936.2,0.4976245]
[1772208782416,1.306,1936.9,1936.8,0.0011]
[1772208782618,1.77220198,1937.2,1936.8,0.0011]
[1772208782832,0.48165576,1937.5,1936.8,0.0011]
[1772208782990,1.77200389,1937.5,1936.8,0.0011]
[1772208783420,0.48165576,1937.4,1936.8,0.0011]
[1772208784311,1.77189954,1937.7,1936.8,0.4987245]
[1772208784510,1.78765576,1937.7,1936.8,0.4987245]
[1772208784890,1.29117794,1937.8,1937.0,0.4976245]
[1772208784891,0.001,1937.8,1937.0,0.4976245]
[1772208785095,0.00153886,1938.0,1937.3,0.4976245]
[1772208785820,0.00153886,1938.0,1937.4,0.4976245]
[1772208786210,0.00153886,1938.0,1937.6,0.4976245]
[1772208787048,0.00153886,1938.0,1937.7,1.78781389]
[1772208787346,0.48165576,1938.6,1937.7,1.78781389]
[1772208787857,1.77125531,1938.6,1937.7,1.78781389]
[1772208788022,0.48165576,1938.5,1937.4,1.78801368]
[1772208788201,0.48165576,1938.5,1937.4,1.29038918]
[1772208788523,0.48165576,1937.9,1937.0,0.00153886]
[1772208788850,0.48165576,1937.9,1937.0,1.2921883]
[1772208789005,1.77175681,1937.9,1937.0,1.2921883]
[1772208789431,1.77175681,1937.9,1937.0,1.7898128]
[1772208790615,0.48165576,1937.9,1937.0,1.7898128]
[1772208790805,1.2899668,1938.1,1937.1,0.47777912]
[1772208791006,1.7489038,1938.1,1937.2,1.2905224]
[1772208792409,2.59185205,1938.3,1937.2,1.76830152]
[1772208792704,3.05078905,1938.3,1937.2,1.76830152]
[1772208792904,1.28974661,1938.4,1937.3,0.47777912]
[1772208793140,3.05061253,1938.5,1937.5,0.47777912]
[1772208793425,1.74861253,1938.5,1937.5,0.47777912]
[1772208793925,0.458937,1938.5,1937.5,0.47777912]
[1772208794120,1.74842143,1938.8,1937.8,0.47777912]
[1772208794337,1.74842143,1938.8,1937.8,1.60077912]
[1772208794539,0.458937,1938.6,1937.4,2.41338918]
[1772208794713,0.458937,1938.3,1937.4,2.41338918]
[1772208794916,0.458937,1938.3,1937.4,1.123]
[1772208795123,1.74879356,1938.2,1937.4,2.41335599]
[1772208795330,0.458937,1938.2,1937.4,2.41335599]
[1772208795536,0.458937,1938.0,1937.2,1.2905224]
[1772208795835,0.459937,1938.0,1937.2,1.2905224]
[1772208796035,0.459937,1938.0,1937.0,1.29219427]
[1772208796852,1.301,1937.9,1937.0,1.29219427]
[1772208797006,0.001,1938.0,1937.1,0.47777912]
[1772208797212,0.001,1938.0,1937.3,0.47777912]
[1772208797452,1.28974727,1938.4,1937.4,1.59977912]
[1772208797648,1.28974727,1938.4,1937.5,0.47777912]
[1772208799542,1.28974727,1938.4,1937.6,1.29025598]
[1772208800314,0.458937,1938.3,1937.6,1.29025598]
[1772208801264,1.74864353,1938.5,1937.6,1.7680351]
[1772208802536,0.458937,1938.5,1937.6,1.7680351]
[1772208803028,1.74832789,1938.9,1937.7,0.47777912]
[1772208803348,1.74832789,1938.9,1937.8,1.121]
[1772208803349,0.458937,1938.8,1937.8,1.121]
[1772208803914,0.458937,1938.8,1937.8,1.59877912]
[1772208804115,1.2895239,1938.7,1937.9,1.29005624]
[1772208804340,1.7484609,1938.7,1937.9,1.29005624]
[1772208804954,0.458937,1938.7,1937.9,1.29005624]
[1772208805626,0.46047586,1939.0,1938.1,2.42273259]
[1772208805827,0.46047586,1939.0,1938.2,0.47777912]
[1772208806014,0.00153886,1939.0,1938.4,0.47777912]
[1772208806217,0.46047586,1939.0,1938.4,1.28968068]
[1772208807518,0.001,1939.1,1938.5,0.47777912]
[1772208808340,0.001,1938.9,1938.6,1.28959042]
[1772208808852,0.459937,1938.9,1938.0,0.00153886]
[1772208809019,0.458937,1938.7,1938.0,0.00153886]
[1772208809323,0.458937,1938.5,1938.0,0.00153886]
[1772208809523,0.458937,1938.5,1938.0,1.29152548]
[1772208809921,0.458937,1938.5,1938.0,1.29152051]
[1772208810315,1.2895239,1938.7,1938.0,1.29152051]
[1772208810635,1.7484609,1938.7,1938.0,1.29152051]
[1772208811023,0.458937,1938.7,1938.0,1.29152051]
[1772208811222,1.28945904,1938.8,1938.0,1.29152051]
[1772208811456,1.29040382,1938.9,1938.0,1.76929963]
[1772208812441,0.458937,1938.6,1938.0,0.00153886]
[1772208812832,0.458937,1938.5,1938.0,0.00153886]
[1772208813849,0.458937,1938.2,1937.6,0.0011]
[1772208814049,1.2895239,1938.7,1937.6,0.0011]
[1772208814050,1.74844578,1938.8,1937.7,1.59977912]
[1772208814246,0.458937,1938.7,1937.7,1.59977912]
[1772208814455,1.28959042,1938.6,1937.8,1.29012281]
[1772208815119,1.29040522,1938.9,1938.0,0.47777912]
[1772208815746,0.001,1938.9,1938.0,0.47777912]
[1772208815955,1.29041519,1938.9,1938.0,0.47777912]
[1772208816340,2.88166959,1938.8,1938.1,1.121]
[1772208816520,1.7484609,1938.7,1938.1,1.121]
[1772208816847,2.88166959,1938.5,1938.1,1.121]
[1772208817052,2.88166959,1938.3,1937.6,0.0011]
[1772208818030,0.458937,1938.3,1937.6,0.0011]
[1772208818357,0.458937,1938.3,1937.6,1.29134144]
[1772208818535,1.28985656,1938.2,1937.6,0.0011]
[1772208818737,1.74878096,1938.3,1937.6,0.0011]
[1772208818931,1.74873386,1938.3,1937.6,0.0011]
[1772208819255,0.458937,1938.3,1937.6,0.0011]
[1772208819854,1.74872877,1938.3,1937.6,0.0011]
[1772208820051,0.46109468,1938.6,1937.6,0.0011]
[1772208820236,1.75072711,1938.6,1937.6,0.49547101]
[1772208820549,1.75072711,1938.6,1937.7,1.29128939]
[1772208820730,0.001,1938.4,1937.7,1.29128939]
[1772208821451,0.001,1938.4,1937.7,1.7856604]
[1772208822530,2.42373259,1938.4,1937.7,0.0011]
[1772208822936,0.46109468,1938.3,1937.7,1.1221]
[1772208823140,2.42373259,1938.4,1937.7,1.1221]
[1772208823339,2.88482727,1938.4,1937.7,1.1221]
[1772208824626,0.001,1938.4,1937.7,2.90662078]
[1772208824826,1.29073359,1938.4,1937.8,0.49437101]
[1772208825856,1.29073359,1938.4,1937.9,1.12]
[1772208826538,0.001,1938.4,1938.0,1.28998968]
[1772208826737,0.001,1938.4,1937.9,2.41001023]
[1772208827463,0.001,1938.4,1937.9,1.12]
[1772208827639,0.46109468,1938.3,1937.7,2.4112722]
[1772208827844,0.46109468,1938.3,1937.7,2.4112803]
[1772208828190,0.46109468,1938.3,1937.7,2.41127655]
[1772208828877,1.290775,1938.4,1937.8,1.12]
[1772208829867,1.75186968,1938.4,1937.8,1.12]
[1772208830048,2.88382727,1938.3,1937.8,1.12]
[1772208830435,0.46109468,1938.3,1937.8,1.12]
[1772208830635,1.290775,1938.4,1937.8,1.12]
[1772208830935,1.290775,1938.4,1937.8,2.41009121]
[1772208831137,1.290775,1938.4,1937.8,1.12]
[1772208831961,1.290775,1938.4,1937.8,2.41011001]
[1772208832269,1.290775,1938.4,1937.8,1.12]
[1772208832564,0.001,1938.4,1937.8,2.41011196]
[1772208832766,0.001,1938.4,1937.9,0.49437101]
[1772208832974,0.001,1938.4,1938.0,1.28998968]
[1772208833653,1.28945739,1938.8,1938.0,1.78436069]
[1772208833849,1.29043882,1938.9,1938.1,0.49437101]
[1772208834051,1.29043882,1938.9,1938.2,1.121]
[1772208835348,0.001,1938.9,1938.2,2.41084289]
[1772208835940,0.001,1938.9,1938.2,2.9052139]
[1772208836292,0.001,1938.9,1938.3,0.49437101]
[1772208837453,0.001,1938.9,1938.5,0.49437101]
[1772208837680,0.001,1938.9,1938.6,1.61437101]
[1772208837976,0.001,1938.9,1938.7,0.49437101]
[1772208839604,0.001,1938.9,1938.8,1.28945739]
[1772208839775,0.001,1938.9,1938.7,1.78389491]
[1772208840386,0.001,1938.9,1938.6,1.12]
[1772208840571,0.001,1938.9,1938.6,2.40958905]
[1772208841112,0.001,1939.1,1938.6,2.90393598]
[1772208841466,0.001,1939.1,1938.6,1.61437101]
[1772208841789,0.001,1939.1,1938.6,2.90394815]
[1772208842770,0.101,1939.3,1938.7,0.49437101]
[1772208843536,1.29153886,1940.0,1939.3,0.49437101]
[1772208843802,0.00153886,1940.0,1939.5,0.49437101]
[1772208845613,0.00153886,1940.0,1939.7,0.49437101]
[1772208845977,0.00153886,1940.0,1939.8,1.61737101]
[1772208846592,0.001,1940.3,1939.8,1.61737101]
[1772208847776,0.001,1940.3,1939.8,0.49437101]
[1772208848093,0.46209468,1940.3,1939.9,1.124]
[1772208849896,1.28852695,1940.2,1939.9,1.124]
[1772208851497,1.28948576,1940.3,1939.9,1.124]
[1772208851701,0.001,1940.3,1939.9,1.124]
[1772208851872,0.001,1940.3,1939.9,2.41271757]
[1772208852189,0.001,1940.3,1939.9,1.124]
[1772208852583,0.001,1940.3,1939.9,2.41272419]
[1772208853190,0.001,1940.3,1939.9,2.41272241]
[1772208853572,0.001,1940.4,1939.9,2.41272241]
[1772208853573,0.001,1940.5,1940.0,0.45050799]
[1772208853975,0.001,1940.5,1940.1,1.73910136]
[1772208854683,0.001,1940.7,1940.3,0.45050799]
[1772208854890,0.001,1940.7,1940.4,1.57450799]
[1772208855310,0.001,1940.7,1940.4,1.124]
[1772208855704,0.001,1940.9,1940.4,1.57450799]
[1772208856034,0.001,1940.9,1940.4,0.45050799]
[1772208856188,0.45606081,1940.9,1940.5,1.125]
[1772208857489,0.001,1940.9,1940.5,1.125]
[1772208857688,0.45506081,1940.8,1940.5,1.125]
[1772208858911,4.16598838,1940.7,1940.2,1.124]
[1772208859282,4.16598838,1940.7,1939.7,2.52130473]
[1772208859283,0.45506081,1940.6,1939.7,2.52130473]
[1772208859482,0.45506081,1940.4,1939.8,1.124]
[1772208861717,2.8777934,1940.7,1939.8,2.41273355]
[1772208861914,1.28826136,1940.6,1939.9,0.45050799]
[1772208862105,2.42373259,1940.9,1939.9,0.45050799]
[1772208862106,1.28909342,1940.9,1939.9,0.45050799]
[1772208862621,2.42273259,1940.4,1940.0,1.123]
[1772208862820,2.8777934,1940.6,1940.0,1.123]
[1772208863821,2.42273259,1940.4,1939.9,1.123]
[1772208864000,2.42273259,1940.2,1939.7,1.123]
[1772208864195,2.8777934,1940.2,1939.4,1.28903466]
[1772208864394,2.8777934,1940.2,1939.6,1.123]
[1772208864395,0.45506081,1940.1,1939.6,1.123]
[1772208866320,1.28865979,1940.0,1939.6,1.123]
[1772208866817,2.8777934,1939.7,1939.0,0.00153886]
[1772208867007,1.28865979,1940.0,1939.0,0.00153886]
[1772208867008,2.42273259,1939.4,1939.1,1.122]
[1772208867321,0.45506081,1939.6,1939.0,0.00153886]
[1772208867322,3.84472311,1939.6,1939.0,0.00153886]
[1772208868225,3.84472311,1939.6,1938.8,0.0011]
[1772208868226,0.45506081,1939.4,1938.8,0.0011]
[1772208868604,3.84472311,1939.3,1938.8,0.0011]
[1772208869098,1.288992,1939.5,1938.8,0.0011]
[1772208869422,1.288992,1939.5,1938.8,0.45160799]
[1772208869618,1.288992,1939.5,1938.8,0.0011]
[1772208869619,0.45506081,1939.4,1938.8,0.0011]
[1772208870412,1.28912494,1939.3,1938.8,0.0011]
[1772208871624,1.74397171,1939.7,1938.8,0.45160799]
[1772208871923,0.45506081,1939.6,1938.8,0.0011]
[1772208874022,1.288992,1939.5,1938.8,0.45160799]
[1772208874932,1.74403575,1939.6,1938.8,0.45160799]
[1772208875131,3.3896623,1939.8,1938.8,0.45160799]
[1772208875316,17.0193246,1940.4,1938.8,0.45160799]
[1772208875317,1.29022609,1940.0,1938.8,0.45160799]
[1772208875713,1.7452869,1940.0,1938.8,0.45160799]
[1772208876313,1.7452869,1940.0,1939.0,0.45050799]
[1772208878011,1.29022609,1940.0,1939.0,0.45050799]
[1772208878322,1.29022609,1940.0,1939.2,0.45050799]
[1772208878512,0.45506081,1939.9,1939.2,1.73964564]
[1772208878713,0.45506081,1939.9,1939.3,1.12]
[1772208878939,0.00153886,1940.0,1939.3,1.12]
[1772208880436,0.47378843,1940.0,1939.3,1.12]
[1772208880838,1.28872622,1939.9,1939.3,2.4090908]
[1772208881939,0.47224957,1939.8,1939.0,0.48157434]
[1772208882133,0.47224957,1939.8,1939.1,1.12]
[1772208882747,1.28872622,1939.9,1939.2,0.48157434]
[1772208883111,1.28872622,1939.9,1939.1,1.12]
[1772208883112,3.3896623,1939.8,1939.1,1.12]
[1772208883331,0.47224957,1939.7,1939.1,1.12]
[1772208885223,1.28892555,1939.6,1939.1,1.12]
[1772208887814,7.68863222,1939.9,1939.1,2.89078521]
[1772208888139,1.28977941,1939.9,1939.2,0.48157434]
[1772208888312,0.47224957,1939.8,1939.3,1.119]
[1772208889211,0.47224957,1939.8,1939.0,1.77089802]
[1772208890337,1.2888591,1939.7,1939.1,0.48157434]
[1772208892054,0.47224957,1939.6,1938.9,1.1201]
[1772208892251,1.288992,1939.5,1938.9,1.1201]
[1772208895455,0.47224957,1939.5,1938.9,1.1201]
[1772208895650,0.47224957,1939.5,1939.0,0.0011]
[1772208896246,0.47224957,1939.4,1939.0,0.0011]
[1772208896559,0.47224957,1939.4,1938.8,1.1191]
[1772208897223,0.47224957,1939.4,1938.8,0.0011]
[1772208898462,1.76137451,1939.3,1938.8,0.0011]
[1772208898627,5.15649976,1939.4,1938.8,0.48267434]
[1772208898628,1.28909928,1939.4,1938.8,0.48267434]
[1772208899982,0.47224957,1939.3,1938.8,0.0011]
[1772208900271,3.3896623,1939.0,1938.6,0.0011]
[1772208900563,1.28945739,1938.8,1938.5,0.0011]
[1772208900933,0.47224957,1938.7,1938.0,0.00153886]
[1772208901136,0.47224957,1938.6,1938.0,0.00153886]
[1772208902662,0.47224957,1938.4,1938.0,0.00153886]
[1772208903664,1.76183999,1938.6,1938.0,0.00153886]
[1772208904350,1.76176114,1938.8,1938.0,0.4831132]
[1772208904540,1.28951157,1938.8,1938.0,0.4831132]
[1772208904740,3.3896623,1939.2,1938.0,0.4831132]
[1772208904741,1.76149139,1939.2,1938.4,0.48157434]
[1772208904940,1.76149139,1939.2,1938.4,1.59557434]
[1772208905361,1.76149139,1939.2,1938.5,0.48157434]
[1772208905762,0.47224957,1939.1,1938.4,1.114]
[1772208906462,0.47224957,1939.0,1938.1,1.28992312]
[1772208906669,0.47224957,1939.0,1938.0,5.16123134]
[1772208906670,1.76177347,1938.7,1938.0,0.00153886]
[1772208906836,0.47224957,1939.0,1938.1,0.48157434]
[1772208907042,5.15771896,1938.9,1938.1,0.48157434]
[1772208907639,5.15771896,1938.9,1938.0,1.11553886]
[1772208907640,0.47224957,1938.8,1938.0,1.11553886]
[1772208908059,0.47224957,1938.8,1938.1,0.0011]
[1772208908261,0.001,1938.4,1938.1,0.0011]
[1772208908650,1.28939089,1938.9,1938.1,0.48267434]
[1772208908871,5.15742049,1939.0,1938.2,1.7714309]
[1772208910372,5.15742049,1939.0,1938.2,1.59457434]
[1772208910543,5.64635582,1939.0,1938.2,1.59457434]
[1772208910971,5.64635582,1939.0,1938.3,1.74008163]
[1772208911969,5.64635582,1939.0,1938.2,1.113]
[1772208911970,0.48893533,1938.8,1938.2,1.113]
[1772208912846,0.48893533,1938.9,1938.1,0.0011]
[1772208913040,5.15742049,1939.0,1938.0,0.00263886]
[1772208913041,0.48893533,1938.6,1938.0,0.00263886]
[1772208913243,5.15742049,1939.0,1938.1,1.74021473]
[1772208913244,0.48893533,1938.9,1938.1,1.74021473]
[1772208913465,0.48893533,1938.9,1938.1,2.85321473]
[1772208914253,1.28930848,1939.1,1938.2,0.45029161]
[1772208914856,1.28930848,1939.1,1938.3,1.28979002]
[1772208915065,1.28930848,1939.1,1938.3,1.74008163]
[1772208915455,5.64596694,1939.2,1938.4,0.45029161]
[1772208915456,1.28920153,1939.2,1938.4,0.45029161]
[1772208916578,1.288992,1939.5,1938.4,0.45029161]
[1772208916953,1.288992,1939.5,1938.6,0.45029161]
[1772208917154,1.288992,1939.5,1938.8,0.45029161]
[1772208917458,1.77792733,1939.5,1938.7,1.112]
[1772208917961,5.15646982,1939.7,1938.8,0.45029161]
[1772208917962,1.28991241,1939.7,1938.8,0.45029161]
[1772208920084,0.48893533,1939.4,1938.6,1.111]
[1772208920961,1.77806027,1939.3,1938.6,1.111]
[1772208922895,0.48893533,1939.2,1938.6,1.111]
[1772208923067,0.48893533,1939.2,1938.4,1.11]
[1772208923068,1.77819323,1939.1,1938.4,1.11]
[1772208924174,1.77819323,1939.1,1938.4,1.56029161]
[1772208925285,1.2892579,1939.1,1938.5,1.73994856]
[1772208925596,1.28905847,1939.4,1938.6,0.45029161]
[1772208927307,1.28905847,1939.4,1938.7,1.2895239]
[1772208927481,1.28905847,1939.4,1938.7,1.73981551]
[1772208927682,1.28905847,1939.4,1938.8,0.45029161]
[1772208928906,0.001,1939.6,1939.0,0.45029161]
[1772208929291,1.28986069,1939.7,1939.0,0.45029161]
[1772208929497,0.001,1939.7,1939.2,0.45029161]
[1772208930401,0.001,1939.7,1939.3,1.109]